fUSD/lending_fUSD_20251030
["ID","MTS","AMOUNT","RATE_DAILY","PERIOD"]
[392715244,1761852648666,-800.0,0.00030306,13]
[392715245,1761852648677,-800.0,0.00030306,13]
[392715246,1761852648687,-800.0,0.00030306,13]
[392715247,1761852648697,-800.0,0.00030306,13]
[392715248,1761852648707,-800.0,0.00030306,13]
[392715249,1761852648717,-800.0,0.00030306,13]
[392715250,1761852648727,-800.0,0.00030306,13]
[392715251,1761852648736,-800.0,0.00030306,13]
[392715252,1761852648746,-800.0,0.00030306,13]
[392715253,1761852648756,-800.0,0.00030306,13]
[392715254,1761852648766,-800.0,0.00030306,13]
[392715255,1761852648776,-800.0,0.00030306,13]
[392715256,1761852648786,-800.0,0.00030306,13]
[392715257,1761852648796,-800.0,0.00030306,13]
[392715258,1761852648806,-800.0,0.00030306,13]
[392715259,1761852648815,-800.0,0.00030306,13]
[392715260,1761852648825,-800.0,0.00030306,13]
[392715261,1761852648835,-800.0,0.00030306,13]
[392715262,1761852648845,-800.0,0.00030306,13]
[392715263,1761852648855,-800.0,0.00030306,13]
[392715264,1761852648866,-800.0,0.00030306,13]
[392715265,1761852648875,-800.0,0.00030306,13]
[392715266,1761852648885,-800.0,0.00030306,13]
[392715267,1761852648895,-800.0,0.00030306,13]
[392715268,1761852648904,-800.0,0.00030306,13]
[392715269,1761852648915,-800.0,0.00030306,13]
[392715270,1761852648925,-800.0,0.00030306,13]
[392715271,1761852648934,-800.0,0.00030306,13]
[392715272,1761852648944,-800.0,0.00030306,13]
[392715273,1761852648953,-800.0,0.00030306,13]
[392715274,1761852648963,-800.0,0.00030306,13]
[392715275,1761852648973,-800.0,0.00030306,13]
[392715276,1761852648983,-800.0,0.00030306,13]
[392715277,1761852648993,-800.0,0.00030306,13]
[392715278,1761852649002,-800.0,0.00030306,13]
[392715279,1761852649012,-800.0,0.00030306,13]
[392715280,1761852649022,-800.0,0.00030306,13]
[392715281,1761852649032,-800.0,0.00030306,13]
[392715282,1761852649042,-800.0,0.00030306,13]
[392715283,1761852649052,-800.0,0.00030306,13]
[392715284,1761852649062,-633.0,0.00030306,13]
[392715285,1761852649072,-1425.0,0.00030313,2]
[392715286,1761852649082,-500.0,0.00030337,7]
[392715287,1761852649095,-3248.417,0.00030364,25]
[392715288,1761852649105,-177.47,0.00030376,2]
[392715289,1761852649116,-500.0,0.00030405,7]
[392715290,1761852649131,-168.0,0.00030406,2]
[392715291,1761852649141,-199.0,0.0003041,14]
[392715292,1761852649150,-500.0,0.0003041,2]
[392715293,1761852649160,-875.49,0.0003041,2]
[392715294,1761852649171,-4420.37,0.0003041,2]
[392715295,1761852649181,-500.0,0.0003041,2]
[392715296,1761852649191,-500.0,0.0003041,2]
[392715297,1761852649201,-300.0,0.0003041,2]
[392715298,1761852649211,-300.0,0.0003041,2]
[392715299,1761852649221,-750.0,0.00030411,2]
[392715300,1761852649230,-750.0,0.00030411,2]
[392715301,1761852649239,-2300.0,0.00030411,7]
[392715302,1761852649250,-500.0,0.00030418,7]
[392715303,1761852649262,-150.0,0.00030428,2]
[392715304,1761852649271,-500.0,0.00030432,7]
[392715305,1761852649281,-168.0,0.00030439,2]
[392715306,1761852649291,-12888.08,0.000305,7]
[392715307,1761852649300,-1647.63,0.000305,7]
[392715308,1761852649310,-1149.82,0.000305,30]
[392715309,1761852649319,-1500.0,0.000305,6]
[392715310,1761852649329,-150.0,0.00030558,2]
[392715311,1761852649338,-168.0,0.0003056,2]
[392715312,1761852649348,-168.0,0.00030573,2]
[392715313,1761852649359,-12888.08,0.000306,7]
[392715314,1761852649369,-500.0,0.0003063,7]
[392715315,1761852649378,-199.0,0.00030684,14]
[392715316,1761852649388,-500.0,0.00030684,2]
[392715317,1761852649397,-875.49,0.00030684,2]
[392715318,1761852649407,-4420.37,0.00030684,2]
[392715319,1761852649418,-500.0,0.00030684,2]
[392715320,1761852649428,-500.0,0.00030684,2]
[392715321,1761852649438,-300.0,0.00030684,2]
[392715322,1761852649448,-300.0,0.00030684,2]
[392715323,1761852649458,-750.0,0.00030685,2]
[392715324,1761852649467,-750.0,0.00030685,2]
[392715325,1761852649477,-151.0,0.00030822,14]
[392715326,1761852649486,-2164.67,0.000309,2]
[392715327,1761852649496,-323.4349196,0.00030928,2]
[392715328,1761852649505,-199.0,0.00030958,14]
[392715329,1761852649515,-500.0,0.00030958,2]
[392715330,1761852649524,-875.49,0.00030958,2]
[392715331,1761852649534,-4420.37,0.00030958,2]
[392715332,1761852649544,-500.0,0.00030958,2]
[392715333,1761852649553,-500.0,0.00030958,2]
[392715334,1761852649563,-300.0,0.00030958,2]
[392715335,1761852649572,-300.0,0.00030958,2]
[392715336,1761852649581,-750.0,0.00030959,2]
[392715337,1761852649591,-750.0,0.00030959,2]
[392715338,1761852649600,-1100.0,0.00030959,7]
[392715339,1761852649610,-316.14934,0.00031,3]
[392715340,1761852649620,-2000.0,0.00031,2]
[392715341,1761852649630,-1500.0,0.00031,6]
[392715342,1761852649640,-500.0,0.00031025,7]
[392715343,1761852649650,-2043.47737724,0.00031028,2]
[392715344,1761852649660,-12888.08,0.000311,7]
[392715345,1761852649670,-150.0,0.000311,2]
[392715346,1761852649679,-500.0,0.00031108,7]
[392715347,1761852649689,-904.0,0.00031152,2]
[392715348,1761852649698,-842.407,0.00031152,2]
[392715349,1761852649708,-3051.06140618,0.00031229,2]
[392715350,1761852649717,-500.0,0.00031232,7]
[392715351,1761852649727,-199.0,0.00031232,14]
[392715352,1761852649736,-500.0,0.00031232,2]
[392715353,1761852649746,-875.49,0.00031232,2]
[392715354,1761852649755,-4420.37,0.00031232,2]
[392715355,1761852649765,-500.0,0.00031232,2]
[392715356,1761852649775,-500.0,0.00031232,2]
[392715357,1761852649784,-300.0,0.00031232,2]
[392715358,1761852649793,-300.0,0.00031232,2]
[392715359,1761852649803,-750.0,0.00031233,2]
[392715360,1761852649812,-750.0,0.00031233,2]
[392715361,1761852649822,-2300.0,0.00031233,7]
[392715362,1761852649831,-500.0,0.00031272,7]
[392715363,1761852649840,-168.0,0.0003129,2]
[392715364,1761852649850,-295.44213519,0.00031297,7]
[392715365,1761852649859,-500.0,0.0003132,7]
[392715366,1761852649869,-300.2282414,0.000315,2]
[392715367,1761852649878,-203.23816086,0.000315,2]
[392715368,1761852649887,-1647.63,0.000315,7]
[392715369,1761852649897,-1149.82,0.000315,30]
[392715370,1761852649906,-1500.0,0.000315,6]
[392715371,1761852649915,-200.39710656,0.00031506,2]
[392715372,1761852649925,-500.0,0.00031506,7]
[392715373,1761852649935,-199.0,0.00031506,14]
[392715374,1761852649944,-500.0,0.00031506,2]
[392715375,1761852649954,-875.49,0.00031506,2]
[392715376,1761852649963,-4420.37,0.00031506,2]
[392715377,1761852649974,-500.0,0.00031506,2]
[392715378,1761852649983,-500.0,0.00031506,2]
[392715379,1761852649992,-300.0,0.00031506,2]
[392715380,1761852650003,-300.0,0.00031506,2]
[392715381,1761852650013,-500.0,0.00031506,7]
[392715382,1761852650022,-150.0,0.00031507,120]
[392715383,1761852650032,-150.0,0.00031507,120]
[392715384,1761852650042,-150.0,0.00031507,120]
[392715385,1761852650052,-150.0,0.00031507,120]
[392715386,1761852650062,-150.0,0.00031507,120]
[392715387,1761852650071,-150.0,0.00031507,120]
[392715388,1761852650081,-150.0,0.00031507,120]
[392715389,1761852650093,-150.0,0.00031507,120]
[392715390,1761852650106,-150.0,0.00031507,120]
[392715391,1761852650116,-150.0,0.00031507,120]
[392715392,1761852650126,-750.0,0.00031507,2]
[392715393,1761852650138,-750.0,0.00031507,2]
[392715394,1761852650148,-150.0,0.00031507,120]
[392715395,1761852650158,-150.0,0.00031507,120]
[392715396,1761852650170,-150.0,0.00031507,120]
[392715397,1761852650179,-150.0,0.00031507,120]
[392715398,1761852650189,-150.0,0.00031507,120]
[392715399,1761852650198,-150.0,0.00031507,120]
[392715400,1761852650208,-249.30431608,0.00031507,120]
[392715401,1761852650218,-152.60180675,0.00031507,30]
[392715402,1761852650227,-200.0,0.00031507,2]
[392715403,1761852650236,-150.0,0.00031507,60]
[392715404,1761852650246,-500.0,0.00031507,60]
[392715405,1761852650255,-500.0,0.00031507,60]
[392715406,1761852650265,-500.0,0.00031507,60]
[392715407,1761852650274,-150.0,0.00031507,60]
[392715408,1761852650284,-150.0,0.00031507,60]
[392715409,1761852650293,-150.0,0.00031507,60]
[392715410,1761852650303,-150.0,0.00031507,60]
[392715411,1761852650313,-150.0,0.00031507,60]
[392715412,1761852650323,-200.0,0.00031507,2]
[392715413,1761852650333,-150.0,0.00031507,60]
[392715414,1761852650343,-253.49683933,0.00031507,34]
[392715415,1761852650353,-180.61284602,0.00031507,2]
[392715416,1761852650364,-500.0,0.00031507,60]
[392715417,1761852650374,-150.0,0.00031507,60]
[392715418,1761852650384,-150.0,0.00031507,60]
[392715419,1761852650394,-150.0,0.00031507,60]
[392715420,1761852650405,-150.0,0.00031507,60]
[392715421,1761852650415,-153.47859023,0.00031507,14]
[392715422,1761852650424,-200.0,0.00031507,2]
[392715423,1761852650433,-196.01,0.00031507,30]
[392715424,1761852650443,-168.0,0.00031525,2]
[392715425,1761852650452,-11271.89394011,0.00031569,2]
[392715426,1761852650462,-3528.89660962,0.000316,2]
[392715427,1761852650471,-150.0,0.00031644,60]
[392715428,1761852650481,-500.0,0.00031644,60]
[392715429,1761852650490,-614.94975785,0.00031644,60]
[392715430,1761852650499,-500.0,0.00031644,60]
[392715431,1761852650508,-150.0,0.00031644,60]
[392715432,1761852650518,-150.0,0.00031644,60]
[392715433,1761852650527,-154.05047191,0.00031644,60]
[392715434,1761852650537,-150.0,0.00031644,60]
[392715435,1761852650546,-150.0,0.00031644,60]
[392715436,1761852650555,-150.0,0.00031644,60]
[392715437,1761852650564,-500.0,0.00031644,60]
[392715438,1761852650575,-169.76215859,0.00031644,60]
[392715439,1761852650584,-250.0,0.00031644,60]
[392715440,1761852650594,-289.2802683,0.00031644,60]
[392715441,1761852650603,-500.0,0.00031774,7]
[392715442,1761852650612,-500.0,0.0003178,2]
[392715443,1761852650621,-199.0,0.0003178,14]
[392715444,1761852650631,-300.2302768,0.0003178,2]
[392715445,1761852650640,-875.49,0.0003178,2]
[392715446,1761852650649,-4420.37,0.0003178,2]
[392715447,1761852650659,-500.0,0.0003178,2]
[392715448,1761852650671,-500.0,0.0003178,2]
[392715449,1761852650686,-300.0,0.0003178,2]
[392715450,1761852650702,-181.99156829,0.0003178,2]
[392715451,1761852650715,-750.0,0.00031781,2]
[392715452,1761852650727,-750.0,0.00031781,2]
[392715453,1761852650738,-150.0,0.00031781,60]
[392715454,1761852650750,-305.45059285,0.00031781,60]
[392715455,1761852650763,-600.0,0.00031781,60]
[392715456,1761852650776,-150.0,0.00031781,60]
[392715457,1761852650789,-150.0,0.00031781,60]
[392715458,1761852650801,-150.0,0.00031781,60]
[392715459,1761852650814,-156.82732645,0.00031781,60]
[392715460,1761852650827,-500.0,0.00031781,60]
[392715461,1761852650840,-500.0,0.00031795,7]
[392715462,1761852650852,-1013.0,0.000318,2]
[392715463,1761852650866,-200.0,0.00031822,2]
[392715464,1761852650878,-200.0,0.00031822,2]
[392715465,1761852650888,-152.0,0.00031883,3]
[392715466,1761852650899,-12888.08,0.000319,7]
[392715467,1761852650912,-150.0,0.00031918,60]
[392715468,1761852650925,-150.0,0.00031918,60]
[392715469,1761852650936,-150.0,0.00031918,60]
[392715470,1761852650949,-204.61057853,0.00031918,60]
[392715471,1761852650968,-570.5,0.00031967,30]
[392715472,1761852650987,-178.75647701,0.00032,2]
[392715473,1761852650999,-150.0,0.00032,5]
[392715474,1761852651012,-1000.0,0.00032,2]
[392715475,1761852651024,-151.0,0.00032,7]
[392715476,1761852651035,-151.0,0.00032,7]
[392715477,1761852651049,-400.0,0.00032,7]
[392715478,1761852651061,-300.0,0.00032,7]
[392715479,1761852651074,-1797.53632294,0.00032,120]
[392715480,1761852651087,-274.47741878,0.00032,2]
[392715481,1761852651101,-935.73,0.00032,7]
[392715482,1761852651114,-1008.33615443,0.00032,7]
[392715483,1761852651125,-500.0,0.00032025,7]
[392715484,1761852651138,-500.0,0.00032054,2]
[392715485,1761852651150,-199.0,0.00032054,14]
[392715486,1761852651167,-875.49,0.00032054,2]
[392715487,1761852651179,-4420.37,0.00032054,2]
[392715488,1761852651191,-500.0,0.00032054,2]
[392715489,1761852651202,-500.0,0.00032054,2]
[392715490,1761852651213,-300.0,0.00032054,2]
[392715491,1761852651224,-750.0,0.00032055,2]
[392715492,1761852651233,-750.0,0.00032055,2]
[392715493,1761852651244,-250.0,0.00032055,60]
[392715494,1761852651256,-205.99056556,0.00032055,60]
[392715495,1761852651269,-2300.0,0.00032055,7]
[392715496,1761852651282,-19849.68,0.000321,7]
[392715497,1761852651293,-200.0,0.0003214,2]
[392715498,1761852651302,-500.0,0.00032157,7]
[392715499,1761852651313,-880.181979,0.000323,2]
[392715500,1761852651322,-500.0,0.00032328,2]
[392715501,1761852651334,-199.0,0.00032328,14]
[392715502,1761852651345,-875.49,0.00032328,2]
[392715503,1761852651358,-4420.37,0.00032328,2]
[392715504,1761852651370,-500.0,0.00032328,2]
[392715505,1761852651380,-500.0,0.00032328,2]
[392715506,1761852651391,-300.0,0.00032328,2]
[392715507,1761852651401,-994.96,0.00032328,120]
[392715508,1761852651411,-994.96,0.00032328,120]
[392715509,1761852651422,-994.96,0.00032328,120]
[392715510,1761852651432,-994.96,0.00032328,120]
[392715511,1761852651444,-994.96,0.00032328,120]
[392715512,1761852651455,-994.96,0.00032328,120]
[392715513,1761852651465,-994.96,0.00032328,120]
[392715514,1761852651476,-994.96,0.00032328,120]
[392715515,1761852651487,-994.96,0.00032328,120]
[392715516,1761852651499,-994.96,0.00032328,120]
[392715517,1761852651510,-750.0,0.00032329,2]
[392715518,1761852651520,-750.0,0.00032329,2]
[392715519,1761852651531,-168.77,0.00032399,2]
[392715520,1761852651542,-1000.0,0.00032444,7]
[392715521,1761852651554,-586.51887892,0.00032457,2]
[392715522,1761852651565,-200.0,0.00032462,2]
[392715523,1761852651576,-1647.63,0.000325,7]
[392715524,1761852651588,-1149.82,0.000325,30]
[392715525,1761852651599,-150.0,0.00032523,7]
[392715526,1761852651620,-150.0,0.00032523,7]
[392715527,1761852651631,-150.0,0.00032523,7]
[392715528,1761852651642,-150.0,0.00032523,7]
[392715529,1761852651654,-150.0,0.00032523,7]
[392715530,1761852651666,-150.0,0.00032523,7]
[392715531,1761852651676,-150.0,0.00032523,7]
[392715532,1761852651687,-150.0,0.00032523,7]
[392715533,1761852651698,-150.0,0.00032523,7]
[392715534,1761852651709,-150.0,0.00032523,7]
[392715535,1761852651720,-150.0,0.00032523,7]
[392715536,1761852651732,-150.0,0.00032523,7]
[392715537,1761852651742,-150.0,0.00032523,7]
[392715538,1761852651753,-924.17659165,0.00032554,2]
[392715539,1761852651763,-5231.13345343,0.000326,7]
[392715540,1761852652319,-14618.54654657,0.000326,7]
[392715541,1761852652330,-500.0,0.00032602,2]
[392715542,1761852652341,-302.90616811,0.00032602,14]
[392715543,1761852652351,-875.49,0.00032602,2]
[392715544,1761852652362,-4420.37,0.00032602,2]
[392715545,1761852652375,-500.0,0.00032602,2]
[392715546,1761852652385,-500.0,0.00032602,2]
[392715547,1761852652396,-300.0,0.00032602,2]
[392715548,1761852652406,-750.0,0.00032603,2]
[392715549,1761852652418,-750.0,0.00032603,2]
[392715550,1761852652428,-1100.0,0.00032603,7]
[392715551,1761852652439,-3051.06140618,0.00032687,2]
[392715552,1761852652450,-150.0,0.00032749,7]
[392715553,1761852652461,-4754.89287313,0.000328,2]
[392715554,1761852652471,-1000.0,0.00032845,2]
[392715555,1761852652482,-150.0,0.00032852,7]
[392715556,1761852652493,-500.0,0.00032876,2]
[392715557,1761852652504,-500.04,0.00032876,120]
[392715558,1761852652516,-875.49,0.00032876,2]
[392715559,1761852652529,-4420.37,0.00032876,2]
[392715560,1761852652540,-500.0,0.00032876,2]
[392715561,1761852652551,-387.92852813,0.00032876,2]
[392715562,1761852652562,-300.0,0.00032876,2]
[392715563,1761852652572,-339.54,0.00032877,2]
[392715564,1761852652582,-155.804558,0.00032877,31]
[392715565,1761852652593,-151.0,0.00032877,120]
[392715566,1761852652603,-750.0,0.00032877,2]
[392715567,1761852652612,-750.0,0.00032877,2]
[392715568,1761852652624,-150.0,0.00032877,60]
[392715569,1761852652634,-3301.16679033,0.00032945,2]
[392715570,1761852652644,-994.96,0.00032957,120]
[392715571,1761852652655,-3528.89660962,0.00032965,2]
[392715572,1761852652665,-323.4349196,0.00032971,2]
[392715573,1761852652675,-150.0,0.00032975,7]
[392715574,1761852652685,-150.0,0.00032975,7]
[392715575,1761852652696,-150.0,0.00032975,7]
[392715576,1761852652706,-500.0,0.00032989,120]
[392715577,1761852652717,-1580.45961686,0.00033,2]
[392715578,1761852652727,-1534.58119609,0.00033,2]
[392715579,1761852652738,-151.21732951,0.00033,2]
[392715580,1761852652750,-40000.0,0.00033,5]
[392715581,1761852652760,-150.1,0.00033,5]
[392715582,1761852652770,-1000.0,0.00033,2]
[392715583,1761852652780,-151.0,0.00033,7]
[392715584,1761852652791,-32648.99365506,0.00033,13]
[392715585,1761852652801,-167.53221616,0.00033,60]
[392715586,1761852652811,-412.63970749,0.00033,120]
[392715587,1761852652822,-395.824407,0.00033,14]
[392715588,1761852652833,-1013.87996147,0.00033,2]
[392715589,1761852652843,-178.02604083,0.00033014,60]
[392715590,1761852652854,-150.0,0.0003304,7]
[392715591,1761852652866,-19849.68,0.000331,14]
[392715592,1761852652876,-500.0,0.0003315,2]
[392715593,1761852652887,-875.49,0.0003315,2]
[392715594,1761852652898,-4420.37,0.0003315,2]
[392715595,1761852652908,-500.0,0.0003315,2]
[392715596,1761852652919,-300.0,0.0003315,2]
[392715597,1761852652929,-750.0,0.00033151,2]
[392715598,1761852652940,-750.0,0.00033151,2]
[392715599,1761852652950,-446.42,0.00033165,2]
[392715600,1761852652960,-150.0,0.0003318,7]
[392715601,1761852652971,-500.0,0.00033199,7]
[392715602,1761852652981,-380.06,0.000332,7]
[392715603,1761852652991,-2067.57,0.000332,7]
[392715604,1761852653002,-2783.38,0.000332,7]
[392715605,1761852653013,-606.42,0.000332,7]
[392715606,1761852653024,-1791.09,0.000332,7]
[392715607,1761852653035,-150.0,0.00033201,7]
[392715608,1761852653047,-363.3,0.00033205,2]
[392715609,1761852653058,-177.47,0.00033235,2]
[392715610,1761852653070,-150.0,0.00033246,7]
[392715611,1761852653082,-150.0,0.00033246,7]
[392715612,1761852653096,-500.0,0.000333,15]
[392715613,1761852653107,-500.0,0.00033423,120]
[392715614,1761852653120,-500.0,0.00033424,2]
[392715615,1761852653131,-875.49,0.00033424,2]
[392715616,1761852653142,-4420.37,0.00033424,2]
[392715617,1761852653153,-500.0,0.00033424,2]
[392715618,1761852653166,-300.0,0.00033424,2]
[392715619,1761852653178,-750.0,0.00033425,2]
[392715620,1761852653189,-750.0,0.00033425,2]
[392715621,1761852653201,-151.0,0.00033425,120]
[392715622,1761852653212,-150.0,0.00033427,7]
[392715623,1761852653223,-150.0,0.00033427,7]
[392715624,1761852653234,-150.0,0.00033427,7]
[392715625,1761852653245,-1001.10209973,0.00033447,30]
[392715626,1761852653257,-1000.82657481,0.00033447,30]
[392715627,1761852653269,-1000.0,0.00033447,30]
[392715628,1761852653280,-1000.0,0.00033447,30]
[392715629,1761852653291,-1000.0,0.00033447,30]
[392715630,1761852653302,-1097.8612358,0.00033447,30]
[392715631,1761852653314,-1095.52848997,0.00033447,30]
[392715632,1761852653325,-1000.0,0.00033447,30]
[392715633,1761852653335,-1000.0,0.00033447,30]
[392715634,1761852653347,-1000.0,0.00033447,30]
[392715635,1761852653358,-1000.0,0.00033447,30]
[392715636,1761852653813,-196.01,0.0003348,30]
[392715637,1761852653838,-1193.10537365,0.000335,2]
[392715638,1761852653850,-150.0,0.00033509,7]
[392715639,1761852653859,-150.0,0.00033556,7]
[392715640,1761852653870,-1647.63,0.000336,14]
[392715641,1761852653880,-1149.82,0.000336,30]
[392715642,1761852653889,-150.0,0.00033653,7]
[392715643,1761852653898,-500.0,0.00033698,2]
[392715644,1761852653907,-875.49,0.00033698,2]
[392715645,1761852653917,-4420.37,0.00033698,2]
[392715646,1761852653926,-500.0,0.00033698,2]
[392715647,1761852653935,-300.0,0.00033698,2]
[392715648,1761852653944,-750.0,0.00033699,2]
[392715649,1761852653954,-750.0,0.00033699,2]
[392715650,1761852653963,-2300.0,0.00033699,7]
[392715651,1761852653973,-19849.68,0.000337,14]
[392715652,1761852653982,-2164.67,0.000337,2]
[392715653,1761852653992,-150.0,0.00033728,7]
[392715654,1761852654002,-150.0,0.00033728,7]
[392715655,1761852654012,-5186.45027747,0.000338,14]
[392715656,1761852654022,-150.0,0.00033837,7]
[392715657,1761852654031,-300.0,0.00033863,5]
[392715658,1761852654041,-150.0,0.00033878,7]
[392715659,1761852654051,-150.0,0.00033878,7]
[392715660,1761852654061,-150.0,0.00033878,7]
[392715661,1761852654071,-500.0,0.00033939,60]
[392715662,1761852654080,-150.0,0.00033969,7]
[392715663,1761852654094,-150.0,0.00033969,7]
[392715664,1761852654103,-500.0,0.00033972,2]
[392715665,1761852654113,-875.49,0.00033972,2]
[392715666,1761852654124,-4420.37,0.00033972,2]
[392715667,1761852654135,-300.0,0.00033972,2]
[392715668,1761852654144,-750.0,0.00033973,2]
[392715669,1761852654153,-750.0,0.00033973,2]
[392715670,1761852654163,-152.00852263,0.0003399,2]
[392715671,1761852654174,-500.0,0.00033999,120]
[392715672,1761852654183,-994.96,0.00033999,120]
[392715673,1761852654193,-976.96,0.00034,2]
[392715674,1761852654203,-578.2486366,0.00034,2]
[392715675,1761852654212,-151.0,0.00034,7]
[392715676,1761852654222,-200.0,0.00034,120]
[392715677,1761852654232,-61798.38485449,0.00034,2]
[392715678,1761852654241,-1999.99,0.00034,2]
[392715679,1761852654251,-2000.0,0.00034,2]
[392715680,1761852654261,-2000.0,0.00034,2]
[392715681,1761852654271,-2000.0,0.00034,2]
[392715682,1761852654281,-2000.0,0.00034,2]
[392715683,1761852654290,-2000.0,0.00034,2]
[392715684,1761852654301,-1851.31,0.00034,2]
[392715685,1761852654312,-2000.0,0.00034,2]
[392715686,1761852654322,-2000.0,0.00034,2]
[392715687,1761852654332,-766.66,0.00034,120]
[392715688,1761852654342,-200.0,0.00034,60]
[392715689,1761852654351,-200.0,0.00034,50]
[392715690,1761852654360,-200.0,0.00034,120]
[392715691,1761852654371,-210.0,0.00034,120]
[392715692,1761852654381,-477.13749083,0.00034,30]
[392715693,1761852654390,-304.58,0.00034024,2]
[392715694,1761852654401,-534.17,0.00034026,2]
[392715695,1761852654411,-150.0,0.00034026,2]
[392715696,1761852654421,-150.0,0.00034026,2]
[392715697,1761852654431,-150.0,0.00034026,2]
[392715698,1761852654440,-150.0,0.00034026,2]
[392715699,1761852654450,-150.0,0.00034072,7]
[392715700,1761852654459,-153.06969321,0.00034082,30]
[392715701,1761852654468,-150.0,0.00034104,7]
[392715702,1761852654478,-500.04,0.00034129,120]
[392715703,1761852654487,-29065.32401856,0.0003413,10]
[392715704,1761852654500,-6312.22426139,0.0003413,10]
[392715705,1761852654511,-3051.06140618,0.00034145,2]
[392715706,1761852654520,-150.0,0.00034166,7]
[392715707,1761852654530,-500.0,0.00034246,2]
[392715708,1761852654539,-875.49,0.00034246,2]
[392715709,1761852654549,-4420.37,0.00034246,2]
[392715710,1761852654558,-300.0,0.00034246,2]
[392715711,1761852654567,-795.58,0.00034247,2]
[392715712,1761852654577,-750.0,0.00034247,2]
[392715713,1761852654586,-750.0,0.00034247,2]
[392715714,1761852654595,-1100.0,0.00034247,7]
[392715715,1761852654605,-152.88,0.00034289,60]
[392715716,1761852654614,-151.73,0.00034289,60]
[392715717,1761852654624,-150.0,0.0003433,7]
[392715718,1761852654634,-150.0,0.0003433,7]
[392715719,1761852654643,-150.0,0.0003433,7]
[392715720,1761852654652,-150.0,0.0003433,7]
[392715721,1761852654661,-150.0,0.0003433,7]
[392715722,1761852654670,-150.0,0.0003433,7]
[392715723,1761852654680,-3528.89660962,0.0003433,2]
[392715724,1761852654690,-152.88,0.00034389,60]
[392715725,1761852654699,-151.73,0.00034389,60]
[392715726,1761852654708,-153.06969321,0.00034438,30]
[392715727,1761852654717,-152.88,0.00034489,60]
[392715728,1761852654726,-151.73,0.00034489,60]
[392715729,1761852654736,-1704.04735253,0.0003449,2]
[392715730,1761852654746,-150.0,0.00034494,7]
[392715731,1761852654756,-278.2924039,0.00034519,60]
[392715732,1761852654766,-500.0,0.0003452,2]
[392715733,1761852654775,-875.49,0.0003452,2]
[392715734,1761852654785,-4420.37,0.0003452,2]
[392715735,1761852654795,-300.0,0.0003452,2]
[392715736,1761852654804,-750.0,0.00034521,2]
[392715737,1761852654814,-750.0,0.00034521,2]
[392715738,1761852654824,-150.0,0.00034556,7]
[392715739,1761852654833,-150.0,0.00034588,7]
[392715740,1761852654842,-152.88,0.00034589,60]
[392715741,1761852654851,-151.73,0.00034589,60]
[392715742,1761852654861,-152.88,0.00034689,60]
[392715743,1761852654870,-151.73,0.00034689,60]